Cogmind - Beta 13 @@@ ROGUE MODE // 2024.06.13 @ 21:03:27 Player: osman sinnoks Result: Destroyed by as-41648 with Assembled Heavy Rifle Performance ------------- Evolutions (0) 0 Regions Visited (2) 400 Robots Destroyed (7) 35 Value Destroyed (170) 170 Prototype IDs (0) 0 Alien Tech Used (0) 0 Bonus (0) 0 TOTAL SCORE: 605 Bonus ------- None Cogmind --------- Core Integrity 0/250 Matter 287/300 Energy 8/100 System Corruption 6% Temperature Warm (120) Movement Core (150) Ox2 Location -10/Mines Parts ------- > --- POWER (1) -------- (None) > --- PROPULSION (2) --- (None) > --- UTILITY (2) ------ Seismic Detector Weapon Shielding > --- WEAPON (2) ------- Beamcaster > --- INVENTORY (5) ---- Ion Engine Light Treads Light Treads Peak State ------------ > --- POWER ------------ (None) > --- PROPULSION ------- Aluminum Leg Carbon-fiber Leg > --- UTILITY ---------- Seismic Detector Weapon Shielding > --- WEAPON ----------- Beamcaster > --- INVENTORY -------- Ion Engine Light Treads Light Treads [Rating: 11] Favorites ----------- Power Ion Engine Engine Ion Engine Propulsion Aluminum Leg Leg Aluminum Leg Utility Seismic Detector Device Seismic Detector Protection Weapon Shielding Weapon Light Assault Rifle Energy Gun EM Pulse Gun Ballistic Gun Light Assault Rifle Build | -11 -10 -10 ------- Run | Yrd Mat Min Slots Evolved . | . . . Power . | . . . Propulsion . | . . . Utility . | . . . Weapon . | . . . Parts Attached 9 | 6 1 2 Power 1 | 1 . . Engine 1 | 1 . . Core . | . . . Reactor . | . . . Propulsion 3 | 2 . 1 Treads . | . . . Leg 3 | 2 . 1 Wheel . | . . . Hover . | . . . Flight . | . . . Utility 2 | 1 1 . Device 1 | 1 . . Storage . | . . . Processor . | . . . Hackware . | . . . Protection 1 | . 1 . Artifact . | . . . Weapon 3 | 2 . 1 Energy Gun 2 | 1 . 1 Energy Cannon . | . . . Ballistic Gun 1 | 1 . . Ballistic Cannon . | . . . Launcher . | . . . Special Weapon . | . . . Impact Weapon . | . . . Slashing Weapon . | . . . Piercing Weapon . | . . . Special Melee Weapon . | . . . Unidentified Prototypes . | . . . Parts Lost 6 | . 1 5 Power 1 | . . 1 Propulsion 3 | . . 3 Utility . | . . . Weapon 2 | . 1 1 Highest Loss Streak 5 | . 1 5 To Critical Strikes . | . . . Average Slot Usage (%) 87 | . 91 79 Engine 13 | . 14 11 Leg 27 | . 28 26 Device 14 | . 14 14 Protection 10 | . 8 14 Energy Gun 7 | . 11 . Ballistic Gun 13 | . 14 11 Naked Turns . | . . . Heaviest Build 10 | 9 10 8 Greatest Support 25 | 20 20 25 Greatest Overweight (x) 2 | 2 . . Average Overweight (x) . | . . . Largest Inventory Capacity 5 | 5 5 5 Average Capacity 5 | 5 5 5 Most Carried 4 | 2 4 4 Average Carried 2 | . 2 3 Final Capacity 5 | 5 5 5 Final Carried 3 | . 3 3 Class Distribution -------------------- 100% | Mutant Dominant Class ---------------- Mutant | -10/Materials Mutant | -10/Mines Resources | -11 -10 -10 ----------- Run | Yrd Mat Min Matter Collected 312 | 239 51 22 Remotely . | . . . Salvage Created 260 | 63 167 30 Parts 16 | 9 7 . Haulers Intercepted . | . . . Recyclers Shooed 2 | 1 1 . Parts Field Recycled . | . . . Retrieved Matter . | . . . Parts Self-Destructed . | . . . Prevented . | . . . Kills | -11 -10 -10 ------- Run | Yrd Mat Min Combat Hostiles Destroyed 6 | . 4 2 Guns 4 | . 2 2 AOE 2 | . 2 . Classes Destroyed 3 | 1 1 1 Tunneler 3 | 3 . . Grunt 4 | . 4 . Assembled 2 | . . 2 Best Kill Streak 2 | 2 2 2 Combat Bots Only 2 | . 2 2 Max Kills in Single Turn 2 | 1 2 1 Gunslinging . | . . . Exploded 2 | . 2 . Melee . | . . . Uniques/NPCs Destroyed . | . . . Combat | -11 -10 -10 -------- Run | Yrd Mat Min Hostile Shots Fired 103 | . 78 25 Missed 42 | . 34 8 Damage Taken 792 | . 381 411 Core 258 | . 86 172 Absorbed by Shields . | . . . Redirected to Shielding 34 | . 19 15 Core Remaining (%) 100 | 100 . . Volleys Fired 49 | 7 26 16 Largest 2 | 2 2 1 Hottest 75 | 60 60 75 Shots Fired 68 | 14 39 15 Gun 68 | 14 39 15 Cannon . | . . . Launcher . | . . . Special . | . . . Kinetic 41 | 7 26 8 Thermal 7 | . . 7 Explosive . | . . . Electromagnetic 20 | 7 13 . Robot Hit Streak 5 | 1 3 5 Robot Miss Streak 4 | 4 4 4 Penetration Max . | . . . Secondary Targets . | . . . Shots Hit Robots 28 | 4 16 8 Core Hits 16 | 3 10 3 Critical Kills . | . . . Critical Parts Destroyed . | . . . Critical Strikes 2 | . 1 1 Burn 1 | . . 1 Corrupt 1 | . 1 . Melee Attacks . | . . . Impact . | . . . Slashing . | . . . Piercing . | . . . Sneak Attacks . | . . . Combat Hostiles . | . . . Follow-up Attacks . | . . . Damage Inflicted 488 | 57 304 127 Guns 376 | 57 192 127 Cannons . | . . . Explosions 109 | . 109 . Melee . | . . . Ramming 3 | . 3 . Kinetic 115 | 7 84 24 Thermal 212 | . 109 103 Explosive . | . . . Electromagnetic 158 | 50 108 . Impact . | . . . Slashing . | . . . Piercing . | . . . Highest Corruption 6 | . 1 6 Average Corruption 1 | . 1 1 Corruption Purged . | . . . Corruption Blocked . | . . . Effects 5 | . . 5 Message Errors 1 | . . 1 Matter Fused 2 | . . 2 Data Loss (minor) 1 | . . 1 Weapon Failures 1 | . . 1 Overload Shots . | . . . Overflow Damage 19 | . 19 . Projectiles . | . . . Explosions 19 | . 19 . Melee . | . . . Knockbacks 1 | . 1 . Impact 1 | . 1 . Kinetic . | . . . Secondary . | . . . Self-Inflicted Damage . | . . . Shots . | . . . Rammed . | . . . Targets Rammed 1 | . 1 . Kicked 1 | . 1 . Crushed . | . . . Highest Temperature 120 | 20 82 120 Average Temperature 32 | 13 31 53 Received Heat Transfer 66 | . 66 . Siege Activations . | . . . Robots Corrupted . | . . . Combat Hostiles . | . . . Parts Fried . | . . . Impact Corruptions . | . . . Robots Melted . | . . . Combat Hostiles . | . . . Parts Melted . | . . . Heat Transferred 359 | . 100 259 Parts Sabotaged . | . . . Parts Stolen . | . . . Parts Stripped . | . . . Power Chain Reactions 1 | . 1 . Alert | -11 -10 -10 ------- Run | Yrd Mat Min Peak Influence 116 | 15 116 60 Initial 45 | . 9 45 Average 50 | 5 68 35 Maximum Alert Level . | . . . Low Security (%) 100 | 100 100 100 Level 1 . | . . . Level 2 . | . . . Level 3 . | . . . Level 4 . | . . . Level 5 . | . . . High Security . | . . . Max Security . | . . . Squads Dispatched . | . . . Investigation . | . . . Extermination . | . . . Reinforcement . | . . . Assault . | . . . Garrison . | . . . Intercept . | . . . Searches Triggered . | . . . Construction Impeded . | . . . Haulers Reinforced . | . . . Active Scanning Responses . | . . . Cargo Convoy Interrupts . | . . . Stealth | -11 -10 -10 --------- Run | Yrd Mat Min Distress Signals . | . . . Communications Jammed . | . . . Distress Signals . | . . . Times Spotted 11 | . 7 4 Peak Tracking Total 4 | . 4 3 Tactical Retreats . | . . . Traps | -11 -10 -10 ------- Run | Yrd Mat Min Traps Triggered 1 | . 1 . Indirectly . | . . . Trap Hack Attempts . | . . . Triggered . | . . . Disarmed . | . . . Reprogrammed . | . . . Reused . | . . . Traps Extracted . | . . . Installed . | . . . Triggered . | . . . Machines | -11 -10 -10 ---------- Run | Yrd Mat Min Machines Disabled . | . . . Max in Single Turn . | . . . Machines Repaired . | . . . Machines Dismantled . | . . . Machines Sabotaged . | . . . Overloaded Fab Kills . | . . . Hacking | -11 -10 -10 --------- Run | Yrd Mat Min Machines Accessed 1 | . 1 . Terminals 1 | . 1 . Fabricators . | . . . Repair Stations . | . . . Recycling Units . | . . . Scanalyzers . | . . . Garrison Access . | . . . Total Hacks 2 | . 2 . Successful 2 | . 2 . Failed . | . . . Catastrophic . | . . . Database Lockouts . | . . . Manual . | . . . Terminals 2 | . 2 . Fabricators . | . . . Repair Stations . | . . . Recycling Units . | . . . Scanalyzers . | . . . Garrison Access . | . . . Terminal Hacks 2 | . 2 . Emergency Access Points 1 | . 1 . Zone Layout 1 | . 1 . Fabricator Hacks . | . . . Repair Station Hacks . | . . . Recycling Unit Hacks . | . . . Scanalyzer . | . . . Garrison Access Hacks . | . . . Unauthorized Hacks . | . . . Terminals . | . . . Fabricators . | . . . Repair Stations . | . . . Recycling Units . | . . . Scanalyzers . | . . . Garrison Access . | . . . Data Cores Recovered . | . . . Used . | . . . Hacking Detections 1 | . 1 . Full Trace Events . | . . . Feedback Events . | . . . Feedback Blocked . | . . . Robot Schematics Acquired . | . . . Robots Built . | . . . Authchips . | . . . Time . | . . . Total Robot Build Rating . | . . . Part Schematics Acquired . | . . . Parts Built . | . . . Authchips . | . . . Time . | . . . Total Part Build Rating . | . . . Parts Repaired . | . . . Time . | . . . Parts Recycled . | . . . Recycled Matter . | . . . Retrieved Matter . | . . . Retrieved Components . | . . . Parts Scanalyzed . | . . . Part Schematics Acquired . | . . . Parts Damaged . | . . . Bothacking | -11 -10 -10 ------------ Run | Yrd Mat Min Used RIF Installer . | . . . Robots Hacked . | . . . Non-combat . | . . . Combat . | . . . Robot Hacks Applied . | . . . Relay Couplers Released . | . . . Fabnet Peak Effective % . | . . . Robots Rewired . | . . . Allies Hacked . | . . . Hacks Repelled . | . . . Allies | -11 -10 -10 -------- Run | Yrd Mat Min Total Allies 2 | . . 2 Largest Group 2 | . . 2 Highest-Rated Group 45 | . . 45 Highest-Rated Ally 31 | . . 31 Total Orders . | . . . Ally Attacks 5 | . . 5 Total Damage 42 | . . 42 Kills 2 | . . 2 Allies Corrupted . | . . . Allies Melted . | . . . Intel | -11 -10 -10 ------- Run | Yrd Mat Min Robot Analysis Total . | . . . Derelict Logs Recovered . | . . . Drone Launches . | . . . Drone Recoveries . | . . . Exploration | -11 -10 -10 ------------- Run | Yrd Mat Min Turns Passed 628 | 78 358 192 Spaces Moved 397 | 44 231 122 Core 15 | 15 . . Treads . | . . . Legs 382 | 29 231 122 Wheels . | . . . Hover . | . . . Flight . | . . . Fastest Speed 50 | 50 120 120 Average Speed 118 | 107 120 120 Slowest Speed 150 | 150 120 120 Overloaded Moves . | . . . Propulsion Burnouts . | . . . Robots Hopped . | . . . Cave-ins Triggered . | . . . Exploration Rate (%) 17 | 4 25 23 Regions Visited 2 Branch Regions 1 Pre-discovered Areas . | . . . Known Exits Taken . | . . . Unknown Exits Taken 2 | 1 1 . Scrap Searched 1 | . . 1 Spaces Dug . | . . . Terrain Destroyed 7 | . 7 . Melee . | . . . Projectile . | . . . AOE 7 | . 7 . Terrain Rammed . | . . . Walls Destroyed . | . . . Machines Disabled . | . . . Actions | -11 -10 -10 --------- Run | Yrd Mat Min Total 493 | 62 278 153 Wait 27 | . 16 11 Move 395 | 43 230 122 Hop . | . . . Pick Up 12 | 6 4 2 Fast Attach . | . . . Attach 9 | 6 1 2 Detach . | . . . Swap . | . . . Drop . | . . . Fire 49 | 7 26 16 Melee . | . . . Ram . | . . . Kick 1 | . 1 . Crush . | . . . Escape Stasis . | . . . Rewire . | . . . Trap . | . . . Miscellaneous . | . . . Route ------- -11/Scrapyard -10/Materials (discovered 2 exits: [*Mat] / [*Min]) -10/Mines History --------- Turn | Location | Event 17 | -11/Scrapyard | Discovered new exit (range 15) 79 | -11/Scrapyard | Entered Materials 162 | -10/Materials | Discovered new exit (range 8) 197 | -10/Materials | Discovered new exit (range 9) 318 | -10/Materials | Build established: Mutant 437 | -10/Materials | Entered Mines 438 | -10/Mines | Assembled infested the area 458 | -10/Mines | Met a Derelict bent on vengeance 593 | -10/Mines | Core integrity fell below 50% 614 | -10/Mines | Core integrity fell below 20% 629 | -10/Mines | Destroyed by as-41648 with Assembled Heavy Rifle Last Messages --------------- as-36288 destroyed. System corrupted: Component data lost. X23YO#JIPHV9BOYIX